[Event "44th Indian Team Championship 2025"]
[Site "Gujarat"]
[Date "2025.03.05"]
[Round "1.6"]
[White "Visakh N R"]
[Black "Ujjawal Bansal"]
[Result "1-0"]
[Annotator "TA"]
[ECO "E15"]
[WhiteElo "2514"]
[BlackElo "1780"]
[PlyCount "135"]
[EventDate "2025.03.03"]
[EventCountry "IND"]
[SourceTitle "playchess.com"]
[Source "ChessBase"]
[SourceQuality "1"]
[TimeControl "5400+30"]

{[%evp 16,135,33,26,9,19,4,0,0,6,10,20,34,16,20,25,20,0,8,0,0,0,0,-169,0,0,0,0,4,0,0,0,0,0,0,0,0,0,0,0,0,0,16,18,19,0,0,0,0,0,0,0,0,0,0,0,0,0,0,0,0,0,51,51,78,78,78,78,79,80,231,221,221,183,184,122,419,419,408,393,379,366,373,334,418,397,397,344,197,74,110,111,359,319,580,580,513,491,1651,415,1745,1664,12128,9321,29970,29970,29968,29972,29971,29969,29970,4598,535,450,29978,29979,29979,29980,29982,29983,29983,29984]} 1. d4 {[%emt 0:00:06]} Nf6 {[%emt 0:02:56]} 2. c4 {[%emt 0:00:08]} e6 {[%emt 0:00:05]} 3. Nf3 {[%emt 0:00:12]} b6 {[%emt 0:00:08]} 4. g3 {[%emt 0:00:07]} Ba6 {[%emt 0:00:06]} 5. b3 {[%emt 0:00:56]} Bb4+ {[%emt 0:00:08]} 6. Bd2 {[%emt 0:00:31]} Be7 {[%emt 0:00:06]} 7. Nc3 {[%emt 0:00:29]} c6 {[%emt 0:00:35]} 8. e4 {[%emt 0:03:45]} d5 {[%emt 0:00:37]} 9. Qc2 {[%emt 0:06:11] 9.Bd3 is a critical line.} dxe4 {[%emt 0:16:47] E15: Queen's Indian: 4 g3 sidelines, 4 g3 Ba6 and 4 g3 Bb7 early deviations.} 10. Nxe4 {[%emt 0:00:03]} c5 {[%emt 0:00:32]} 11. dxc5 {[%emt 0:11:29]} Bb7 {[%emt 0:00:40] The position is equal.} 12. Bd3 {[%emt 0:00:06]} bxc5 {[%emt 0:03:16]} 13. O-O {[%emt 0:06:44]} Nc6 {[%emt 0:03:01]} 14. Bc3 {[%emt 0:00:07]} Nb4 {[%emt 0:05:17]} 15. Bxb4 {[%emt 0:00:29] A sharp opening} cxb4 {[%emt 0:00:02]} 16. c5 $146 {[%emt 0:07:09]} (16. Rad1 Qc7 17. Nxf6+ Bxf6 18. Be4 h6 19. Qe2 O-O 20. Bxb7 Qxb7 21. Rd6 a5 22. Rfd1 {½-½ Monov,A (2200)-Semov,D (2341) BUL-ch51 email 2016}) 16... O-O {[%emt 0:30:54]} 17. Nxf6+ {[%emt 0:07:11]} Bxf6 {[%emt 0:00:20] A strong pair of Bishops.} 18. Rad1 {[%emt 0:02:37]} Qc7 {[%emt 0:01:31]} 19. Bxh7+ {[%emt 0:00:05]} Kh8 {[%emt 0:00:02]} 20. Be4 {[%emt 0:00:08]} Bxe4 {[%emt 0:02:02]} 21. Qxe4 {[%emt 0:00:11]} Qxc5 {[%emt 0:00:02]} 22. Rd7 {[%emt 0:00:10][%cal Od7f7]} Kg8 {[%emt 0:02:12]} 23. Rfd1 {[%emt 0:02:47]} a5 {[%emt 0:01:13][%cal Ba7a5,Ba5a4][%mdl 32]} 24. Nd2 {[%emt 0:03:11][%cal Bf3d2,Bd2c4,Bc4e3][%mdl 32]} a4 {[%emt 0:03:24]} 25. Qf3 {[%emt 0:08:43]} Qf5 {[%emt 0:07:41] Repels Ne4} 26. Qxf5 {[%emt 0:08:52]} exf5 {[%emt 0:00:14]} 27. Nc4 {[%emt 0:00:02]} axb3 {[%emt 0:00:38]} 28. axb3 {[%emt 0:00:02]} Rfe8 {[%emt 0:04:22]} 29. Ne3 {[%emt 0:03:33]} Ra2 {[%emt 0:05:55]} 30. R7d2 {[%emt 0:05:47]} Rxd2 {[%emt 0:00:14]} 31. Rxd2 $11 {[%emt 0:00:02][%mdl 4096] Endgame KRB-KRN} Bg5 {[%emt 0:00:26] Strongly threatening ...Rxe3.} 32. Rd3 {[%emt 0:00:53]} Bxe3 {[%emt 0:00:27]} 33. Rxe3 {[%emt 0:04:04] KR-KR} Rc8 {[%emt 0:03:07]} 34. Kf1 {[%emt 0:02:04]} g6 {[%emt 0:00:06]} 35. Ke1 {[%emt 0:00:07]} Kg7 {[%emt 0:00:33]} 36. Rf3 {[%emt 0:02:40]} Kf6 {[%emt 0:01:02]} 37. Rf4 {[%emt 0:00:06]} Re8+ $1 {[%emt 0:01:16]} 38. Kd2 {[%emt 0:00:05]} Rb8 {[%emt 0:03:00]} (38... Re4 $1 $11) 39. h4 $14 {[%emt 0:00:34]} Ke5 {[%emt 0:00:39]} 40. Kd3 {[%emt 0:00:13]} f6 {[%emt 0:01:20]} 41. Rd4 {[%emt 0:00:21]} g5 {[%emt 0:01:16]} 42. f4+ $1 {[%emt 0:00:10]} gxf4 $2 {[%emt 0:00:26]} (42... Ke6 $16) 43. gxf4+ $18 {[%emt 0:00:01]} Ke6 {[%emt 0:00:09]} 44. Kc4 {[%emt 0:00:02]} Kf7 {[%emt 0:00:40]} 45. h5 {[%emt 0:00:15]} Kg7 $2 {[%emt 0:02:38][%mdl 8192]} (45... Rh8 $16 46. Kxb4 Rxh5) 46. Rd5 {[%emt 0:00:08]} Re8 {[%emt 0:00:34]} 47. Rxf5 {[%emt 0:06:11]} Re4+ {[%emt 0:00:01]} 48. Kd3 {[%emt 0:00:34]} Re1 {[%emt 0:00:02]} 49. Kd4 {[%emt 0:00:04]} Kf7 {[%emt 0:01:40] [#]} 50. Rb5 $1 {[%emt 0:03:08]} Rh1 {[%emt 0:00:01]} 51. Rxb4 {[%emt 0:00:22]} Rxh5 {[%emt 0:00:02] [#]} 52. Rb7+ {[%emt 0:00:09]} (52. Rc4 $1 $18 {has better winning chances.}) 52... Ke6 {[%emt 0:00:29]} 53. Rb6+ {[%emt 0:00:08]} Kf7 $2 {[%emt 0:00:13]} (53... Ke7 $16 54. Ke4 Kd7) 54. Ke4 {[%emt 0:03:17]} Kg6 $2 {[%emt 0:00:18]} (54... Rh4 {was called for.} 55. Kf5 Rh5+ 56. Ke4 Ke7) 55. b4 {[%emt 0:01:28][%cal Bb3b4,Bb4b5,Bb5b6][%mdl 32]} Rh1 {[%emt 0:00:06]} 56. Rc6 {[%emt 0:05:42] and Kd5 would now be decisive} Re1+ {[%emt 0:00:02]} (56... Kf7 $142 57. b5 Rb1) 57. Kd5 {[%emt 0:00:04]} Rd1+ {[%emt 0:00:13]} (57... Rb1 $142 58. Rc4 Kf7) 58. Kc5 {[%emt 0:00:04]} Rf1 {[%emt 0:01:27]} 59. b5 {[%emt 0:00:02]} Rxf4 {[%emt 0:00:01]} 60. b6 {[%emt 0:00:01]} Rf5+ {[%emt 0:00:04]} 61. Kd6 {[%emt 0:00:44]} Rb5 {[%emt 0:00:18]} 62. Ke7 {[%emt 0:00:17]} Rf5 {[%emt 0:01:48]} 63. Kd7 {[%emt 0:02:30]} (63. Kd8 $142 Rb5 64. Kc7 Rh5 65. b7 Rh7+ 66. Kb6 Rh8 67. Rc8 Rh3 68. b8=Q (68. b8=B Rb3+ 69. Ka6 Ra3+ 70. Kb5 f5 $16) (68. Rg8+ Kf5 $18) 68... Rb3+ 69. Kc5 Rxb8 70. Rxb8) 63... Rb5 {[%emt 0:00:39]} 64. Kc7 {[%emt 0:00:02] b7 would kill now.} Kg5 {[%emt 0:00:32]} (64... Rb4 $18 65. b7 Rxb7+ 66. Kxb7 Kf5) 65. b7 {[%emt 0:00:02] White mates.} Rxb7+ {[%emt 0:00:25]} 66. Kxb7 {[%emt 0:00:01]} f5 {[%emt 0:00:05][%cal Bf6f5,Bf5f4][%mdl 32]} 67. Kb6 {[%emt 0:00:14]} f4 {[%emt 0:00:02]} 68. Kc5 {[%emt 0:00:05] Weighted Error Value: White=0.05 (flawless) /Black=0.83  Loses game:     	---       	Black=2      Missed win:     	---       	Black=1      Mistake:       	White=1     	Black=5      Inaccurate:     	---       	Black=3      OK:         	White=22    	Black=24     Best:        	White=5     	---        Strong:       	White=2     	Black=1} 1-0

[Event "44th Indian Team Championship 2025"]
[Site "Gujarat"]
[Date "2025.03.05"]
[Round "1.7"]
[White "Vedant Rupeshbhai Varasada"]
[Black "Mitrabha, Guha"]
[Result "0-1"]
[Annotator "TA"]
[ECO "B12"]
[WhiteElo "2012"]
[BlackElo "2499"]
[PlyCount "96"]
[EventDate "2025.03.03"]
[EventCountry "IND"]
[SourceTitle "playchess.com"]
[Source "ChessBase"]
[SourceQuality "1"]
[TimeControl "5400+30"]

{[%evp 10,95,31,25,46,25,40,12,35,-7,-3,0,0,-6,-5,-98,0,0,9,-114,-107,-227,-162,-231,-216,-222,-202,-171,-196,-223,-200,-239,-220,-226,-237,-227,-237,-268,-229,-278,-242,-413,-413,-412,-412,-387,-372,-377,-177,-176,-183,-170,-137,-202,-196,-206,-207,-208,-210,-266,-265,-268,-273,-290,-282,-384,-384,-361,-204,-203,-200,-200,-200,-403,-353,-635,-621,-497,-476,-494,-467,-860,-536,-883,-874,-29997,-29998,-29999]} 1. e4 {[%emt 0:00:04]} c6 {[%emt 0:01:42]} 2. d4 {[%emt 0:00:12]} d5 {[%emt 0:00:07]} 3. e5 {[%emt 0:00:05]} Bf5 {[%emt 0:00:04]} 4. Nf3 {[%emt 0:00:06]} e6 {[%emt 0:00:04]} 5. Be2 {[%emt 0:00:11]} Ne7 {[%emt 0:00:07]} 6. O-O {[%emt 0:00:38]} Ng6 {[%emt 0:00:06] B12: Caro-Kann: Advance Variation.} 7. c3 {[%emt 0:01:42]} Nd7 {[%emt 0:00:07]} 8. Be3 {[%emt 0:01:31]} f6 {[%emt 0:00:06] The position is equal.} 9. exf6 {[%emt 0:02:22]} Qxf6 {[%emt 0:00:03]} 10. Qb3 {[%emt 0:09:50] and Bg5 should not be overlooked} Rb8 {[%emt 0:00:29]} 11. Nbd2 {[%emt 0:08:18]} Bd6 {[%emt 0:00:08]} 12. Ne5 $146 {[%emt 0:08:34]} (12. Rfe1 O-O 13. Nf1 Nf4 14. Bxf4 Bxf4 15. Ng3 Bg6 16. Rad1 e5 17. Bd3 Bxd3 18. Rxd3 Qf7 19. Rdd1 e4 20. Nd2 Bxg3 21. fxg3 Qf2+ 22. Kh1 e3 23. Rf1 Qxd2 {0-1 Yamada,K (2164)-Kojima,S (2400) JPN-ch Tokyo 2018 (10)}) 12... Bxe5 {[%emt 0:11:01]} (12... Ndxe5 $17 13. dxe5 Nxe5 (13... Qxe5 14. Nf3 $15)) 13. dxe5 $11 {[%emt 0:00:07]} Qxe5 {[%emt 0:00:18]} 14. g4 {[%emt 0:06:51] White sacrificed a pawn} (14. Rae1 $11) 14... Nf4 $1 $17 {[%emt 0:02:14]} 15. Bf3 {[%emt 0:06:15]} (15. gxf5 $17 Nxe2+ 16. Kh1 Qxf5 (16... exf5 17. Bxa7 Rd8 18. Rae1 $16) 17. Rae1) 15... Bg6 {[%emt 0:03:46]} 16. Bxa7 {[%emt 0:09:18]} (16. Qa3 {keeps fighting.}) 16... Rd8 $19 {[%emt 0:00:35]} 17. Qxb7 {[%emt 0:09:51][%cal Oa7d4]} O-O {[%emt 0:00:29]} 18. Qxc6 {[%emt 0:01:17] [#]} Qg5 $1 {[%emt 0:13:12]} 19. Bd4 {[%emt 0:09:51]} Nh3+ {[%emt 0:04:26]} 20. Kg2 {[%emt 0:00:05]} Qxd2 {[%emt 0:05:06]} 21. Qxe6+ {[%emt 0:01:24]} Kh8 {[%emt 0:00:35]} 22. Qe3 {[%emt 0:08:07]} Nf4+ {[%emt 0:03:44]} (22... Qxb2 23. Kxh3 Rde8 24. Bxg7+ Kxg7 25. Qd4+ Re5 26. Bxd5 $15) 23. Kh1 {[%emt 0:04:25]} Qxb2 {[%emt 0:01:48]} 24. c4 {[%emt 0:00:20]} Qb4 {[%emt 0:00:55]} 25. cxd5 {[%emt 0:01:33]} (25. Bxd5 {was forced.} Nxd5 26. cxd5) 25... Nd3 {[%emt 0:04:26]} ({Weaker is} 25... Rde8 26. Qc3 Qxc3 27. Bxc3 $19) 26. Be4 {[%emt 0:06:14]} Bxe4+ {[%emt 0:01:00]} 27. Qxe4 {[%emt 0:00:03]} N7c5 {[%emt 0:01:28]} 28. Qe3 {[%emt 0:00:32]} Rxd5 {[%emt 0:01:39]} (28... Rde8 $142 29. Bxc5 Nxc5) 29. Qe7 {[%emt 0:02:46]} Ne6 {[%emt 0:00:11]} 30. Qxb4 {[%emt 0:00:57]} Nxb4 {[%emt 0:00:01] Excellent horsemanship.} 31. Be3 {[%emt 0:00:05]} (31. Bc3 $17 Nd3 32. f3) 31... Nc2 {[%emt 0:01:04]} 32. Rad1 {[%emt 0:00:50]} Ra5 {[%emt 0:00:00][%cal Oc2e3]} 33. Bd2 {[%emt 0:00:20]} Rxa2 {[%emt 0:00:00]} 34. f4 {[%emt 0:00:03]} Nc5 {[%emt 0:01:30]} 35. f5 {[%emt 0:01:13]} Ne4 {[%emt 0:00:47][%cal Oh7h5]} 36. Bf4 {[%emt 0:01:32]} h6 {[%emt 0:00:06]} 37. h3 {[%emt 0:00:51]} Rfa8 {[%emt 0:01:07]} 38. Rd3 {[%emt 0:00:30] [#]} Ne1 {[%emt 0:02:29]} 39. Re3 {[%emt 0:00:32]} Nf2+ {[%emt 0:00:08]} 40. Kg1 {[%emt 0:00:00]} Ned3 {[%emt 0:00:00][%cal Oa2c2]} 41. Bh2 $2 {[%emt 0:00:29]} (41. Rf3) 41... Rb2 {[%emt 0:01:21]} 42. Rf3 $2 {[%emt 0:01:00]} (42. Be5 Nxh3+ 43. Rxh3 Nxe5 44. g5) 42... Raa2 {[%emt 0:00:05][%cal Of2g4]} 43. Bc7 {[%emt 0:00:06]} Kg8 {[%emt 0:00:39] Strongly threatening ...Rc2.} 44. h4 {[%emt 0:00:18]} Rb4 {[%emt 0:00:38]} 45. g5 {[%emt 0:00:57]} (45. R1xf2 $142 Rxg4+ (45... Nxf2 $2 46. Rxf2 Rxg4+ 47. Kf1 $19) 46. Kf1 Rxf2+ (46... Nxf2 $2 47. Rxf2 Rxf2+ 48. Kxf2 $19) 47. Rxf2 Nxf2 (47... Rxh4 48. Ra2 $15) 48. Kxf2) 45... Rxh4 {[%emt 0:00:32]} 46. gxh6 {[%emt 0:00:16]} Nh3+ {[%emt 0:01:14]} 47. Kh1 {[%emt 0:00:05]} Nhf4+ {[%emt 0:00:05]} 48. Kg1 {[%emt 0:00:21]} Rg2# {[%emt 0:00:02] Weighted Error Value: White=0.68/Black=0.27 (precise)   Mistake:       	White=9     	Black=3      Inaccurate:     	White=5     	Black=1      OK:         	White=8     	Black=19     Best:        	White=2     	Black=4      Strong:       	---       	Black=1} 0-1

[Event "44th Indian Team Championship 2025"]
[Site "Gujarat"]
[Date "2025.03.05"]
[Round "1.8"]
[White "Shyaam Nikhil P"]
[Black "Rishit Sharma"]
[Result "1-0"]
[Annotator "TA"]
[ECO "C00"]
[WhiteElo "2427"]
[BlackElo "1843"]
[PlyCount "123"]
[EventDate "2025.03.03"]
[EventCountry "IND"]
[SourceTitle "playchess.com"]
[Source "ChessBase"]
[SourceQuality "1"]
[TimeControl "5400+30"]

{[%evp 17,123,0,6,-7,73,72,66,9,6,5,15,18,22,-7,0,-32,-26,-22,-12,-28,13,0,1,14,0,7,21,18,25,24,26,23,30,29,30,29,44,47,51,36,43,38,66,48,71,68,156,150,149,139,143,147,131,155,274,11,12,16,28,18,38,0,25,0,0,0,0,0,0,0,90,128,241,227,284,291,942,965,1685,1615,1440,1329,29962,29957,29962,29968,29970,29970,29972,29963,29974,29971,29978,29978,29979,29980,29991,29992,29992,29993,29993,29992,29992,29993,29994,29995,29997,29998]} 1. Nf3 {[%emt 0:01:17]} d5 {[%emt 0:00:07]} 2. g3 {[%emt 0:01:31]} Nf6 {[%emt 0:00:07]} 3. Bg2 {[%emt 0:00:18]} e6 {[%emt 0:00:06]} 4. O-O {[%emt 0:00:22]} Be7 {[%emt 0:00:03]} 5. d3 {[%emt 0:01:10]} O-O {[%emt 0:00:12]} 6. Nbd2 {[%emt 0:00:22]} c5 {[%emt 0:06:38]} 7. e4 {[%emt 0:00:21]} Nc6 {[%emt 0:01:27]} 8. Re1 {[%emt 0:00:20]} b5 {[%emt 0:03:36]} 9. exd5 {[%emt 0:00:29]} exd5 {[%emt 0:07:26]} 10. Nb3 {[%emt 0:00:49] C00: French: Unusual White 2nd moves.} Bb7 {[%emt 0:18:37]} (10... a5 $11) 11. Bg5 $16 {[%emt 0:03:38]} Qb6 {[%emt 0:02:31]} 12. a4 $146 {[%emt 0:07:36] White is more active.} ({White should play} 12. d4 $1 $14) (12. d4 c4 13. Nc5 h6 14. Bxf6 Bxf6 15. Nd7 Qc7 16. Nxf6+ gxf6 17. Qd2 Kg7 18. Nh4 Ne7 19. Rxe7 {1-0 Annaberdiev,M (2431)-Daulet,S (1571) FIDE World Rapid Team 2024 (12.19)}) 12... bxa4 $11 {[%emt 0:02:06]} 13. Rxa4 {[%emt 0:00:32]} h6 {[%emt 0:03:11]} 14. Bd2 {[%emt 0:03:46]} Rfe8 {[%emt 0:02:54]} 15. Nh4 {[%emt 0:04:12]} Bf8 {[%emt 0:03:28]} 16. Rf4 {[%emt 0:04:07]} Rxe1+ {[%emt 0:05:48]} 17. Bxe1 {[%emt 0:05:45][%cal Of4f6]} Re8 {[%emt 0:02:01]} 18. Nf5 {[%emt 0:10:32][%cal Of5h6] [#]} Ne7 {[%emt 0:06:36]} 19. Ba5 {[%emt 0:01:19]} Qc6 {[%emt 0:00:15]} 20. Bc3 {[%emt 0:05:57][%cal Of5h6]} Nxf5 {[%emt 0:07:40]} 21. Rxf5 {[%emt 0:04:34]} Qd7 {[%emt 0:00:34]} 22. Re5 {[%emt 0:03:49]} d4 {[%emt 0:02:26]} 23. Rxe8 {[%emt 0:00:22]} Nxe8 {[%emt 0:00:14]} 24. Bd2 {[%emt 0:00:44]} Nf6 {[%emt 0:00:57]} 25. Na5 {[%emt 0:00:44]} Bxg2 {[%emt 0:11:45]} 26. Kxg2 {[%emt 0:00:07]} Qd5+ {[%emt 0:00:11]} 27. Qf3 {[%emt 0:00:42]} a6 {[%emt 0:04:50]} 28. Nc4 {[%emt 0:02:42]} Be7 {[%emt 0:03:42]} 29. g4 {[%emt 0:01:57]} (29. Qxd5 {simplifies} Nxd5 30. g4 Kf8 31. f4) 29... Kf8 {[%emt 0:04:36]} 30. Bf4 {[%emt 0:04:46]} Qxf3+ {[%emt 0:00:52]} 31. Kxf3 $14 {[%emt 0:00:06][%mdl 4096] Endgame KBN-KBN} Ke8 {[%emt 0:00:32]} ({Better is} 31... Nd5 $14) 32. Be5 $16 {[%emt 0:00:40]} Kd7 {[%emt 0:00:10]} 33. Bxf6 {[%emt 0:00:15]} Bxf6 {[%emt 0:00:22] KB-KN} 34. Ke4 {[%emt 0:00:03]} Ke6 {[%emt 0:00:42]} 35. f4 {[%emt 0:00:08]} Be7 {[%emt 0:00:19]} (35... Bd8 $16 36. f5+ Kf6) 36. Ne5 $2 {[%emt 0:05:06]} (36. f5+ $18 Kf6 37. Ne5) 36... g6 $11 {[%emt 0:00:54]} 37. f5+ {[%emt 0:00:54]} gxf5+ {[%emt 0:00:02]} 38. gxf5+ {[%emt 0:00:05]} Kf6 {[%emt 0:00:07]} 39. h4 {[%emt 0:04:45] [#]} Kg7 {[%emt 0:00:24]} 40. Nd7 {[%emt 0:01:40]} h5 $1 {[%emt 0:01:27]} 41. f6+ {[%emt 0:09:09]} Bxf6 {[%emt 0:00:07]} 42. Nxc5 {[%emt 0:00:04]} a5 {[%emt 0:00:53]} 43. Nb3 {[%emt 0:01:06][%csl LRa5,LRd4]} Bxh4 {[%emt 0:00:24]} (43... a4 $1 $11 {keeps the balance.} 44. Nc5 (44. Nxd4 Kf8 $11) 44... Bxh4) 44. Nxa5 $16 {[%emt 0:00:16][%cal Oa5c6] Black is now going downhill.} Be7 {[%emt 0:00:40]} (44... Kg6 $16) 45. Nc6 $1 $18 {[%emt 0:00:23]} (45. Kxd4 Bf6+ 46. Ke4 Bxb2 $17) 45... Bd6 {[%emt 0:00:28]} 46. Nxd4 {[%emt 0:00:44] and Nf5+ would now be decisive} Kf8 $2 {[%emt 0:00:32]} (46... Kg6 47. Nf5 Bb8) 47. Nf5 {[%emt 0:00:14]} Bc7 {[%emt 0:00:18]} 48. b4 {[%emt 0:00:21]} Bd8 {[%emt 0:00:06]} 49. c4 {[%emt 0:00:56][%cal Bc2c4,Bc4c5,Bc5c6,Bc6c7][%mdl 32]} h4 {[%emt 0:00:06]} 50. Kf4 {[%emt 0:00:13] White mates.} Ke8 {[%emt 0:00:38]} 51. d4 {[%emt 0:01:26][%cal Bd3d4,Bd4d5,Bd5d6][%mdl 32]} Kd7 {[%emt 0:00:18]} 52. d5 {[%emt 0:00:06]} Bf6 {[%emt 0:01:11]} 53. c5 {[%emt 0:00:12]} Bc3 {[%emt 0:00:52]} 54. b5 {[%emt 0:00:09]} Bb4 {[%emt 0:00:28]} 55. c6+ {[%emt 0:00:09]} (55. Nxh4 Bxc5 56. Nf5 Kc7 $11) 55... Kc7 {[%emt 0:00:02]} 56. d6+ {[%emt 0:00:10]} Kc8 {[%emt 0:01:00]} 57. Ne7+ {[%emt 0:00:15]} Kb8 {[%emt 0:00:21]} 58. c7+ {[%emt 0:00:06]} Ka7 {[%emt 0:00:02]} 59. Nc6+ {[%emt 0:00:06]} ({Weaker is} 59. c8=B Bxd6+ 60. Kg4 Bxe7 $11) 59... Kb7 {[%emt 0:00:07]} 60. Nxb4 {[%emt 0:00:06]} f5 {[%emt 0:00:13]} 61. Nd5 {[%emt 0:00:08]} h3 {[%emt 0:00:08]} 62. d7 {[%emt 0:00:06] Weighted Error Value: White=0.15 (very precise) /Black=0.38  Missed win:     	White=1     	---        Mistake:       	White=1     	Black=6      Inaccurate:     	White=3     	Black=3      OK:         	White=11    	Black=8      Best:        	White=7     	Black=8      Strong:       	White=1     	Black=1} 1-0

[Event "44th Indian Team Championship 2025"]
[Site "Gujarat"]
[Date "2025.03.05"]
[Round "1.9"]
[White "Sankalp Gupta"]
[Black "Vikesh Nandan Kumar"]
[Result "1-0"]
[Annotator "TA"]
[ECO "B06"]
[WhiteElo "2538"]
[BlackElo "1863"]
[PlyCount "67"]
[EventDate "2025.03.03"]
[EventCountry "IND"]
[SourceTitle "playchess.com"]
[Source "ChessBase"]
[SourceQuality "1"]
[TimeControl "5400+30"]

{[%evp 9,67,57,73,67,75,63,118,96,89,55,67,56,56,69,102,93,113,91,102,105,116,123,127,127,125,74,126,117,127,113,241,209,361,266,260,259,276,273,283,271,270,265,261,265,339,336,354,356,371,365,351,320,431,425,422,421,553,551,541,550]} 1. Nf3 {[%emt 0:03:10]} g6 {[%emt 0:00:16]} 2. e4 {[%emt 0:00:09]} Bg7 {[%emt 0:00:11]} 3. d4 {[%emt 0:00:02]} d6 {[%emt 0:00:32]} 4. Nc3 {[%emt 0:00:11]} Nd7 {[%emt 0:00:44]} 5. Bc4 {[%emt 0:01:01]} h6 {[%emt 0:04:02]} 6. Be3 {[%emt 0:10:17] B06: Modern Defence.} c6 {[%emt 0:04:45]} 7. Qd2 {[%emt 0:08:33]} e5 {[%emt 0:02:49]} ({Better is} 7... d5 $14) 8. dxe5 {[%emt 0:01:57] White is better.} dxe5 {[%emt 0:00:05]} 9. Rd1 $146 {[%emt 0:02:38]} (9. O-O-O Qc7 10. h4 Nb6 11. Bb3 Bg4 12. Kb1 Bd7 13. h5 g5 14. Bxg5 hxg5 15. Qxg5 {0-1 Castillo Pena,P (1770)-Franco Valencia,B (2103) Speed Chess (Women) Q2 blitz 2020 (1)}) 9... Qe7 {[%emt 0:00:23] Dodges Bc5} 10. a4 {[%emt 0:03:45]} Ngf6 {[%emt 0:03:29]} 11. h3 $1 {[%emt 0:00:31] Wards off Ng4} Nh5 {[%emt 0:06:11]} 12. O-O {[%emt 0:09:13]} g5 {[%emt 0:10:46]} 13. Ba2 {[%emt 0:11:47] Black is weak on the light squares} O-O {[%emt 0:08:59]} 14. Qd6 {[%emt 0:03:02]} Re8 {[%emt 0:08:43] A sharp opening} 15. Qxe7 {[%emt 0:04:56]} Rxe7 {[%emt 0:00:03]} 16. Rd6 {[%emt 0:03:46]} Nf8 {[%emt 0:03:45]} 17. Rd8 {[%emt 0:04:29]} (17. h4 $142) 17... b6 {[%emt 0:03:04]} (17... Rd7 $142 18. Rxd7 Bxd7) 18. Rfd1 $36 {[%emt 0:01:35][%cal Bf1d1,Bd1d6,Bd6c6][%mdl 2080] White is on the roll. White has more active pieces. The black rooks are passive.} Nf4 {[%emt 0:01:08]} 19. a5 {[%emt 0:02:15] White plays on the queen side and is better} c5 {[%emt 0:04:59] This costs Black the game.} (19... Kh7 $16) 20. R1d6 {[%emt 0:02:48] [#] Black must now prevent Nd5.} Rb8 $2 {[%emt 0:05:30]} (20... Bb7 21. Rxa8 (21. axb6 Rxd8 22. Rxd8 axb6 $16) 21... Bxa8 22. axb6 axb6 23. Rxb6 Re8) 21. Rc6 {[%emt 0:06:21]} Bb7 {[%emt 0:05:42]} 22. Rxb8 {[%emt 0:00:03][%cal Bd8b8,Bb8b6,Bb6a6,Ba6a7][%mdl 32]} Bxc6 {[%emt 0:00:08]} 23. axb6 {[%emt 0:00:03]} axb6 {[%emt 0:00:08]} 24. Rxb6 {[%emt 0:00:03]} Rc7 {[%emt 0:01:44]} 25. Bxc5 {[%emt 0:00:22]} Nd7 {[%emt 0:00:28]} 26. Bd6 {[%emt 0:00:02]} Rc8 {[%emt 0:00:28]} 27. Ra6 {[%emt 0:00:29]} Ng6 {[%emt 0:03:43]} 28. Ra7 {[%emt 0:00:21]} Bf8 {[%emt 0:00:22]} 29. Bxf8 {[%emt 0:00:15]} Kxf8 {[%emt 0:00:18]} 30. Nd2 {[%emt 0:00:29]} Nf4 {[%emt 0:02:15]} 31. Nc4 {[%emt 0:00:20] White is clearly winning.} Ne6 {[%emt 0:02:56]} 32. Nd6 {[%emt 0:00:30]} Rb8 {[%emt 0:00:43]} 33. Bd5 {[%emt 0:01:17]} Bxd5 {[%emt 0:01:18]} 34. Nxd5 {[%emt 0:00:03] Weighted Error Value: White=0.14 (very precise) /Black=0.33  Mistake:       	White=1     	Black=4      Inaccurate:     	White=1     	Black=3      OK:         	White=14    	Black=12     Best:        	---       	Black=1      Strong:       	White=1     	---} 1-0